fUST/lending_fUST_20241120
["ID","MTS","AMOUNT","RATE_DAILY","PERIOD"]
[342745311,1732098650473,-500.0,0.00022465,7]
[342745312,1732098650484,-213.67005825,0.00022465,7]
[342745313,1732098650495,-500.0,0.00022465,7]
[342745314,1732098650510,-500.0,0.00022465,7]
[342745315,1732098650521,-500.0,0.00022465,7]
[342745316,1732098650531,-500.0,0.00022465,7]
[342745317,1732098650543,-500.0,0.00022465,7]
[342745318,1732098650555,-500.0,0.00022465,7]
[342745319,1732098650566,-648.76,0.00022465,7]
[342745320,1732098650577,-500.0,0.00022465,7]
[342745321,1732098650589,-837.88,0.00022465,7]
[342745322,1732098650600,-500.0,0.00022465,7]
[342745323,1732098650611,-507.6066436,0.00022465,7]
[342745324,1732098650623,-501.07850847,0.00022465,7]
[342745325,1732098650636,-500.0,0.00022465,7]
[342745326,1732098650647,-614.76,0.00022465,7]
[342745327,1732098650658,-500.0,0.00022465,7]
[342745328,1732098650669,-500.0,0.00022465,7]
[342745329,1732098650680,-500.0,0.00022465,7]
[342745330,1732098650691,-169.70975815,0.00022465,7]
[342745331,1732098650702,-512.52196026,0.00022465,7]
[342745332,1732098650713,-553.46,0.00022465,7]
[342745333,1732098650726,-500.0,0.00022465,7]
[342745334,1732098650736,-1142.87,0.00022465,7]
[342745335,1732098650747,-500.0,0.00022465,7]
[342745336,1732098650761,-500.0,0.00022465,7]
[342745337,1732098650773,-500.0,0.00022465,7]
[342745338,1732098650784,-500.0,0.00022465,7]
[342745339,1732098650798,-500.0,0.00022465,7]
[342745340,1732098650809,-502.4882465,0.00022465,7]
[342745341,1732098650820,-503.96741773,0.00022465,7]
[342745342,1732098650831,-184.59783459,0.00022465,7]
[342745343,1732098650844,-500.0,0.00022465,7]
[342745344,1732098650855,-500.0,0.00022465,7]
[342745345,1732098650866,-500.0,0.00022465,7]
[342745346,1732098650878,-500.0,0.00022465,7]
[342745347,1732098650890,-500.0,0.00022465,7]
[342745348,1732098650902,-577.6769698,0.00022465,7]
[342745349,1732098650915,-240.84378705,0.00022465,7]
[342745350,1732098650928,-500.0,0.00022465,7]
[342745351,1732098650941,-586.55,0.00022465,7]
[342745352,1732098650953,-500.0,0.00022465,7]
[342745353,1732098650966,-621.34613384,0.00022465,7]
[342745354,1732098650978,-500.0,0.00022465,7]
[342745355,1732098650992,-500.0,0.00022465,7]
[342745356,1732098651006,-500.0,0.00022465,7]
[342745357,1732098651020,-500.0,0.00022465,7]
[342745358,1732098651032,-500.0,0.00022465,7]
[342745359,1732098651044,-500.0,0.00022465,7]
[342745360,1732098651057,-500.0,0.00022465,7]
[342745361,1732098651069,-500.0,0.00022465,7]
[342745362,1732098651082,-600.50444529,0.00022465,7]
[342745363,1732098651095,-294.78214921,0.00022465,7]
[342745364,1732098651114,-500.0,0.00022465,7]
[342745365,1732098651127,-500.0,0.00022465,7]
[342745366,1732098651139,-501.58523147,0.00022465,7]
[342745367,1732098651151,-514.24958525,0.00022465,7]
[342745368,1732098651164,-500.0,0.00022465,7]
[342745369,1732098651177,-500.0,0.00022465,7]
[342745370,1732098651189,-506.52944845,0.00022465,7]
[342745371,1732098651202,-500.0,0.00022465,7]
[342745372,1732098651214,-547.42238483,0.00022465,7]
[342745373,1732098651226,-500.0,0.00022465,7]
[342745374,1732098651238,-514.13058704,0.00022465,7]
[342745375,1732098651251,-500.0,0.00022465,7]
[342745376,1732098651266,-500.0,0.00022465,7]
[342745377,1732098651279,-500.0,0.00022465,7]
[342745378,1732098651380,-500.0,0.00022465,7]
[342745379,1732098651392,-500.0,0.00022465,7]
[342745380,1732098651402,-500.0,0.00022465,7]
[342745381,1732098651411,-500.0,0.00022465,7]
[342745382,1732098651420,-500.0,0.00022465,7]
[342745383,1732098651430,-502.16567367,0.00022465,7]
[342745384,1732098651439,-453.88219172,0.00022465,7]
[342745385,1732098651449,-518.86,0.00022465,7]
[342745386,1732098651458,-453.97046059,0.00022465,7]
[342745387,1732098651467,-500.0,0.00022465,7]
[342745388,1732098651477,-500.0,0.00022465,7]
[342745389,1732098651486,-512.06,0.00022465,7]
[342745390,1732098651496,-500.0,0.00022465,7]
[342745391,1732098651508,-500.0,0.00022465,7]
[342745392,1732098651517,-556.25692944,0.00022465,7]
[342745393,1732098651527,-500.0,0.00022465,7]
[342745394,1732098651536,-958.07,0.00022465,7]
[342745395,1732098651545,-500.0,0.00022465,7]
[342745396,1732098651557,-500.0,0.00022465,7]
[342745397,1732098651567,-500.0,0.00022465,7]
[342745398,1732098651577,-500.0,0.00022465,7]
[342745399,1732098651587,-500.0,0.00022465,7]
[342745400,1732098651597,-500.0,0.00022465,7]
[342745401,1732098651607,-500.0,0.00022465,7]
[342745402,1732098651616,-500.0,0.00022465,7]
[342745403,1732098651625,-518.73,0.00022465,7]
[342745404,1732098651635,-1123.69,0.00022465,7]
[342745405,1732098651644,-500.0,0.00022465,7]
[342745406,1732098651653,-500.0,0.00022465,7]
[342745407,1732098651663,-645.57,0.00022465,7]
[342745408,1732098651673,-500.0,0.00022465,7]
[342745409,1732098651682,-500.0,0.00022465,7]
[342745410,1732098651691,-945.04,0.00022465,7]
[342745411,1732098651701,-500.0,0.00022465,7]
[342745412,1732098651710,-500.0,0.00022465,7]
[342745413,1732098651719,-500.0,0.00022465,7]
[342745414,1732098651729,-561.21,0.00022465,7]
[342745415,1732098651739,-500.0,0.00022465,7]
[342745416,1732098651749,-500.0,0.00022465,7]
[342745417,1732098651761,-500.0,0.00022465,7]
[342745418,1732098651770,-500.0,0.00022465,7]
[342745419,1732098651780,-829.07,0.00022465,7]
[342745420,1732098651796,-500.0,0.00022465,7]
[342745421,1732098651805,-599.35,0.00022465,7]
[342745422,1732098651815,-500.0,0.00022465,7]
[342745423,1732098651825,-500.0,0.00022465,7]
[342745424,1732098651837,-500.0,0.00022465,7]
[342745425,1732098651846,-500.0,0.00022465,7]
[342745426,1732098651855,-500.0,0.00022465,7]
[342745427,1732098651865,-500.0,0.00022465,7]
[342745428,1732098651875,-500.0,0.00022465,7]
[342745429,1732098651884,-500.0,0.00022465,7]
[342745430,1732098651894,-500.0,0.00022465,7]
[342745431,1732098651903,-511.59223691,0.00022465,7]
[342745432,1732098651912,-838.19,0.00022465,7]
[342745433,1732098651922,-500.0,0.00022465,7]
[342745434,1732098651933,-500.0,0.00022465,7]
[342745435,1732098651943,-500.0,0.00022465,7]
[342745436,1732098651953,-516.92069076,0.00022465,7]
[342745437,1732098651963,-1261.05,0.00022465,7]
[342745438,1732098651973,-500.0,0.00022465,7]
[342745439,1732098651984,-572.89,0.00022465,7]
[342745440,1732098651993,-500.0,0.00022465,7]
[342745441,1732098652004,-229.59109871,0.00022465,7]
[342745442,1732098652014,-500.0,0.00022465,7]
[342745443,1732098652024,-533.50657046,0.00022465,7]
[342745444,1732098652034,-500.0,0.00022465,7]
[342745445,1732098652045,-500.0,0.00022465,7]
[342745446,1732098652055,-151.95437233,0.00022465,7]
[342745447,1732098652065,-500.0,0.00022465,7]
[342745448,1732098652076,-500.0,0.00022465,7]
[342745449,1732098652085,-500.0,0.00022465,7]
[342745450,1732098652096,-500.0,0.00022465,7]
[342745451,1732098652107,-500.0,0.00022465,7]
[342745452,1732098652116,-500.0,0.00022465,7]
[342745453,1732098652126,-502.10490511,0.00022465,7]
[342745454,1732098652136,-500.0,0.00022465,7]
[342745455,1732098652146,-500.0,0.00022465,7]
[342745456,1732098652157,-802.01,0.00022465,7]
[342745457,1732098652167,-760.12,0.00022465,7]
[342745458,1732098652177,-774.31,0.00022465,7]
[342745459,1732098652187,-500.0,0.00022465,7]
[342745460,1732098652197,-500.0,0.00022465,7]
[342745461,1732098652207,-501.89857448,0.00022465,7]
[342745462,1732098652217,-618.19,0.00022465,7]
[342745463,1732098652228,-500.0,0.00022465,7]
[342745464,1732098652238,-500.0,0.00022465,7]
[342745465,1732098652247,-500.0,0.00022465,7]
[342745466,1732098652259,-500.0,0.00022465,7]
[342745467,1732098652268,-500.0,0.00022465,7]
[342745468,1732098652279,-500.0,0.00022465,7]
[342745469,1732098652289,-500.0,0.00022465,7]
[342745470,1732098652299,-500.0,0.00022465,7]
[342745471,1732098652308,-500.0,0.00022465,7]
[342745472,1732098652318,-500.0,0.00022465,7]
[342745473,1732098652328,-789.67,0.00022465,7]
[342745474,1732098652338,-711.02,0.00022465,7]
[342745475,1732098652348,-500.0,0.00022465,7]
[342745476,1732098652357,-500.0,0.00022465,7]
[342745477,1732098652367,-500.0,0.00022465,7]
[342745478,1732098652376,-518.11810471,0.00022465,7]
[342745479,1732098652385,-500.0,0.00022465,7]
[342745480,1732098652395,-523.39,0.00022465,7]
[342745481,1732098652404,-500.0,0.00022465,7]
[342745482,1732098652414,-992.86,0.00022465,7]
[342745483,1732098652423,-500.0,0.00022465,7]
[342745484,1732098652433,-647.5183215,0.00022465,7]
[342745485,1732098652443,-629.97,0.00022465,7]
[342745486,1732098652453,-500.0,0.00022465,7]
[342745487,1732098652462,-500.0,0.00022465,7]
[342745488,1732098652472,-500.0,0.00022465,7]
[342745489,1732098652482,-500.0,0.00022465,7]
[342745490,1732098652491,-500.0,0.00022465,7]
[342745491,1732098652501,-500.0,0.00022465,7]
[342745492,1732098652512,-500.0,0.00022465,7]
[342745493,1732098652522,-500.0,0.00022465,7]
[342745494,1732098652532,-781.36,0.00022465,7]
[342745495,1732098652541,-500.0,0.00022465,7]
[342745496,1732098652550,-500.0,0.00022465,7]
[342745497,1732098652559,-901.62,0.00022465,7]
[342745498,1732098652569,-553.39,0.00022465,7]
[342745499,1732098652579,-500.0,0.00022465,7]
[342745500,1732098652588,-500.0,0.00022465,7]
[342745501,1732098652598,-500.0,0.00022465,7]
[342745502,1732098652607,-500.0,0.00022465,7]
[342745503,1732098652617,-433.73581054,0.00022465,7]
[342745504,1732098652626,-500.0,0.00022465,7]
[342745505,1732098652635,-500.0,0.00022465,2]
[342745506,1732098652645,-500.0,0.00022465,7]
[342745507,1732098652655,-500.0,0.00022465,7]
[342745508,1732098652664,-500.0,0.00022465,7]
[342745509,1732098652674,-500.0,0.00022465,7]
[342745510,1732098652683,-902.77,0.00022465,7]
[342745511,1732098652693,-500.0,0.00022465,7]
[342745512,1732098652702,-500.0,0.00022465,7]
[342745513,1732098652711,-500.0,0.00022465,7]
[342745514,1732098652720,-500.0,0.00022465,7]
[342745515,1732098652730,-500.0,0.00022465,7]
[342745516,1732098652739,-500.0,0.00022465,7]
[342745517,1732098652749,-513.49067019,0.00022465,7]
[342745518,1732098652759,-1000.0,0.00022465,2]
[342745519,1732098652770,-602.4,0.00022465,7]
[342745520,1732098652779,-500.0,0.00022465,7]
[342745521,1732098652790,-902.25,0.00022465,7]
[342745522,1732098652803,-500.0,0.00022465,7]
[342745523,1732098652812,-578.43,0.00022465,7]
[342745524,1732098652822,-500.0,0.00022465,7]
[342745525,1732098652832,-500.0,0.00022465,7]
[342745526,1732098652842,-22918.44,0.00022465,7]
[342745527,1732098652851,-500.0,0.00022465,7]
[342745528,1732098652861,-2748.58,0.00022465,7]
[342745529,1732098652871,-500.0,0.00022465,7]
[342745530,1732098652881,-500.0,0.00022465,7]
[342745531,1732098652890,-500.0,0.00022465,7]
[342745532,1732098652900,-500.0,0.00022465,7]
[342745533,1732098652909,-2295.85,0.00022465,7]
[342745534,1732098652919,-500.0,0.00022465,7]
[342745535,1732098652928,-500.0,0.00022465,7]
[342745536,1732098652937,-500.0,0.00022465,7]
[342745537,1732098652948,-500.0,0.00022465,7]
[342745538,1732098652957,-500.0,0.00022465,7]
[342745539,1732098652967,-500.0,0.00022465,7]
[342745540,1732098652977,-1877.29,0.00022465,7]
[342745541,1732098652986,-1194.38,0.00022465,7]
[342745542,1732098652996,-500.0,0.00022465,7]
[342745543,1732098653006,-500.0,0.00022465,7]
[342745544,1732098653015,-500.0,0.00022465,7]
[342745545,1732098653024,-500.0,0.00022465,7]
[342745546,1732098653033,-500.0,0.00022465,7]
[342745547,1732098653042,-739.28,0.00022465,7]
[342745548,1732098653051,-500.0,0.00022465,7]
[342745549,1732098653061,-500.0,0.00022465,7]
[342745550,1732098653070,-3097.05,0.00022465,7]
[342745551,1732098653079,-500.0,0.00022465,7]
[342745552,1732098653088,-528.56,0.00022465,7]
[342745553,1732098653097,-924.07,0.00022465,7]
[342745554,1732098653107,-500.0,0.00022465,7]
[342745555,1732098653116,-500.0,0.00022465,7]
[342745556,1732098653125,-500.0,0.00022465,7]
[342745557,1732098653134,-500.0,0.00022465,7]
[342745558,1732098653143,-1005.07,0.00022465,7]
[342745559,1732098653152,-500.0,0.00022465,7]
[342745560,1732098653162,-520.37,0.00022465,7]
[342745561,1732098653171,-656.47,0.00022465,7]
[342745562,1732098653180,-1122.57,0.00022465,7]
[342745563,1732098653189,-500.0,0.00022465,7]
[342745564,1732098653199,-720.66,0.00022465,7]
[342745565,1732098653208,-500.0,0.00022465,7]
[342745566,1732098653218,-500.0,0.00022465,7]
[342745567,1732098653227,-666.72,0.00022465,7]
[342745568,1732098653236,-911.96,0.00022465,7]
[342745569,1732098653245,-500.0,0.00022465,7]
[342745570,1732098653255,-500.0,0.00022465,7]
[342745571,1732098653268,-500.0,0.00022465,7]
[342745572,1732098653277,-500.0,0.00022465,7]
[342745573,1732098653286,-500.0,0.00022465,7]
[342745574,1732098653295,-500.64299032,0.00022465,7]
[342745575,1732098653304,-501.40249512,0.00022465,7]
[342745576,1732098653313,-500.0,0.00022465,7]
[342745577,1732098653322,-500.0,0.00022465,7]
[342745578,1732098653331,-500.0,0.00022465,7]
[342745579,1732098653340,-739.82,0.00022465,7]
[342745580,1732098653349,-500.0,0.00022465,7]
[342745581,1732098653359,-500.0,0.00022465,7]
[342745582,1732098653367,-500.0,0.00022465,7]
[342745583,1732098653377,-500.0,0.00022465,7]
[342745584,1732098653386,-500.0,0.00022465,7]
[342745585,1732098653395,-500.0,0.00022465,7]
[342745586,1732098653404,-500.0,0.00022465,7]
[342745587,1732098653413,-500.0,0.00022465,7]
[342745588,1732098653422,-526.88,0.00022465,7]
[342745589,1732098653431,-377.00669087,0.00022465,7]
[342745590,1732098653441,-808.24,0.00022465,7]
[342745591,1732098653450,-500.0,0.00022465,7]
[342745592,1732098653459,-550.61,0.00022465,7]
[342745593,1732098653468,-648.35985709,0.00022465,7]
[342745594,1732098653477,-500.0,0.00022465,7]
[342745595,1732098653486,-628.93,0.00022465,7]
[342745596,1732098653496,-500.0,0.00022465,7]
[342745597,1732098653604,-889.46,0.00022465,7]
[342745598,1732098653615,-608.25,0.00022465,7]
[342745599,1732098653626,-4981.89,0.00022465,7]
[342745600,1732098653636,-500.0,0.00022465,7]
[342745601,1732098653647,-273.34561872,0.00022465,7]
[342745602,1732098653657,-500.0,0.00022465,7]
[342745603,1732098653667,-500.0,0.00022465,7]
[342745604,1732098653676,-584.96,0.00022465,7]
[342745605,1732098653685,-931.0,0.00022465,7]
[342745606,1732098653694,-500.0,0.00022465,7]
[342745607,1732098653703,-500.0,0.00022465,7]
[342745608,1732098653713,-168.72378483,0.00022465,7]
[342745609,1732098653723,-500.0,0.00022465,7]
[342745610,1732098653732,-409.50099149,0.00022465,7]
[342745611,1732098653741,-500.0,0.00022465,7]
[342745612,1732098653751,-500.0,0.00022465,7]
[342745613,1732098653766,-500.0,0.00022465,7]
[342745614,1732098653776,-500.0,0.00022465,7]
[342745615,1732098653790,-500.0,0.00022465,7]
[342745616,1732098653800,-500.0,0.00022465,7]
[342745617,1732098653810,-3228.47,0.00022465,7]
[342745618,1732098653820,-500.0,0.00022465,7]
[342745619,1732098653832,-500.0,0.00022465,7]
[342745620,1732098653841,-500.0,0.00022465,7]
[342745621,1732098653851,-903.73,0.00022465,7]
[342745622,1732098653861,-500.0,0.00022465,7]
[342745623,1732098653876,-500.0,0.00022465,7]
[342745624,1732098653886,-500.0,0.00022465,7]
[342745625,1732098653897,-5887.59,0.00022465,7]
[342745626,1732098653907,-500.0,0.00022465,7]
[342745627,1732098653917,-500.0,0.00022465,7]
[342745628,1732098653928,-500.0,0.00022465,7]
[342745629,1732098653938,-500.0,0.00022465,7]
[342745630,1732098653947,-500.0,0.00022465,7]
[342745631,1732098653957,-502.48904398,0.00022465,7]
[342745632,1732098653968,-500.0,0.00022465,7]
[342745633,1732098653978,-545.65,0.00022465,7]
[342745634,1732098653987,-527.75,0.00022465,7]
[342745635,1732098653998,-647.94721699,0.00022465,7]
[342745636,1732098654010,-510.11357358,0.00022465,7]
[342745637,1732098654020,-500.0,0.00022465,7]
[342745638,1732098654030,-500.0,0.00022465,7]
[342745639,1732098654039,-2693.86,0.00022465,7]
[342745640,1732098654049,-500.0,0.00022465,7]
[342745641,1732098654059,-500.0,0.00022465,7]
[342745642,1732098654069,-215.52838151,0.00022465,7]
[342745643,1732098654079,-244.40905638,0.00022465,7]
[342745644,1732098654089,-500.0,0.00022465,7]
[342745645,1732098654098,-506.5307909,0.00022465,7]
[342745646,1732098654108,-500.0,0.00022465,7]
[342745647,1732098654118,-500.0,0.00022465,7]
[342745648,1732098654128,-500.0,0.00022465,7]
[342745649,1732098654138,-500.0,0.00022465,7]
[342745650,1732098654148,-500.0,0.00022465,7]
[342745651,1732098654157,-571.31,0.00022465,7]
[342745652,1732098654167,-500.0,0.00022465,7]
[342745653,1732098654177,-349.08321158,0.00022465,7]
[342745654,1732098654187,-566.05973788,0.00022465,7]
[342745655,1732098654196,-500.0,0.00022465,7]
[342745656,1732098654207,-500.0,0.00022465,7]
[342745657,1732098654218,-500.0,0.00022465,7]
[342745658,1732098654227,-500.0,0.00022465,7]
[342745659,1732098654238,-772.94,0.00022465,7]
[342745660,1732098654248,-268.91088256,0.00022465,7]
[342745661,1732098654258,-1287.91,0.00022465,7]
[342745662,1732098654267,-406.65404884,0.00022465,7]
[342745663,1732098654277,-3378.45,0.00022465,7]
[342745664,1732098654286,-500.0,0.00022465,7]
[342745665,1732098654296,-500.0,0.00022465,7]
[342745666,1732098654305,-720.6,0.00022465,7]
[342745667,1732098654314,-500.0,0.00022465,7]
[342745668,1732098654323,-3743.65,0.00022465,7]
[342745669,1732098654333,-500.0,0.00022465,7]
[342745670,1732098654342,-606.03,0.00022465,7]
[342745671,1732098654351,-500.0,0.00022465,7]
[342745672,1732098654360,-500.0,0.00022465,7]
[342745673,1732098654369,-500.0,0.00022465,7]
[342745674,1732098654379,-500.0,0.00022465,7]
[342745675,1732098654389,-184.04068769,0.00022465,7]
[342745676,1732098654399,-500.0,0.00022465,7]
[342745677,1732098654408,-500.0,0.00022465,7]
[342745678,1732098654419,-500.0,0.00022465,7]
[342745679,1732098654428,-500.0,0.00022465,7]
[342745680,1732098654438,-975.02,0.00022465,7]
[342745681,1732098654447,-635.95066371,0.00022465,7]
[342745682,1732098654456,-500.0,0.00022465,7]
[342745683,1732098654466,-11749.68,0.00022465,7]
[342745684,1732098654475,-1000.0,0.00022521,2]
[342745685,1732098654485,-500.0,0.00022521,2]
[342745686,1732098654495,-1000.0,0.00022521,2]
[342745687,1732098654504,-623.34942687,0.00022521,2]
[342745688,1732098654517,-160.0,0.00022638,6]
[342745689,1732098654527,-232.67171199,0.00022721,2]
[342745690,1732098654537,-1009.16659253,0.00022721,2]
[342745691,1732098654547,-1000.0,0.00022721,2]
[342745692,1732098654556,-438.75655345,0.00022739,7]
[342745693,1732098654567,-500.0,0.00022739,7]
[342745694,1732098654577,-500.0,0.00022739,7]
[342745695,1732098654587,-635.74,0.00022739,7]
[342745696,1732098654597,-500.0,0.00022739,7]
[342745697,1732098654607,-463.43144806,0.00022739,7]
[342745698,1732098654616,-504.17475127,0.00022739,7]
[342745699,1732098654626,-372.41367628,0.00022739,7]
[342745700,1732098654635,-616.79,0.00022739,7]
[342745701,1732098654644,-506.61903986,0.00022739,7]
[342745702,1732098654654,-500.0,0.00022739,7]
[342745703,1732098654663,-500.0,0.00022739,7]
[342745704,1732098654673,-500.0,0.00022739,7]
[342745705,1732098654682,-500.0,0.00022739,7]
[342745706,1732098654692,-500.0,0.00022739,7]
[342745707,1732098654702,-500.0,0.00022739,7]
[342745708,1732098654711,-582.96924303,0.00022739,7]
[342745709,1732098654720,-648.76,0.00022739,7]
[342745710,1732098654730,-504.61001024,0.00022739,7]
[342745711,1732098654740,-837.88,0.00022739,7]
[342745712,1732098654749,-500.0,0.00022739,7]
[342745713,1732098654760,-500.0,0.00022739,7]
[342745714,1732098654769,-614.76,0.00022739,7]
[342745715,1732098654779,-500.0,0.00022739,7]
[342745716,1732098654790,-500.0,0.00022739,7]
[342745717,1732098654802,-500.0,0.00022739,7]
[342745718,1732098654812,-553.46,0.00022739,7]
[342745719,1732098654822,-500.0,0.00022739,7]
[342745720,1732098654831,-1142.87,0.00022739,7]
[342745721,1732098654842,-532.06578719,0.00022739,7]
[342745722,1732098654850,-500.0,0.00022739,7]
[342745723,1732098654860,-500.0,0.00022739,7]
[342745724,1732098654870,-627.61310342,0.00022739,7]
[342745725,1732098654881,-500.0,0.00022739,7]
[342745726,1732098654890,-500.0,0.00022739,7]
[342745727,1732098654900,-500.0,0.00022739,7]
[342745728,1732098654909,-500.0,0.00022739,7]
[342745729,1732098654919,-500.0,0.00022739,7]
[342745730,1732098654929,-500.0,0.00022739,7]
[342745731,1732098654939,-586.55,0.00022739,7]
[342745732,1732098654948,-500.0,0.00022739,7]
[342745733,1732098654958,-500.0,0.00022739,7]
[342745734,1732098654967,-500.0,0.00022739,7]
[342745735,1732098654978,-561.62992498,0.00022739,7]
[342745736,1732098654987,-500.0,0.00022739,7]
[342745737,1732098654997,-500.0,0.00022739,7]
[342745738,1732098655007,-500.0,0.00022739,7]
[342745739,1732098655018,-532.1311588,0.00022739,7]
[342745740,1732098655028,-500.0,0.00022739,7]
[342745741,1732098655038,-500.0,0.00022739,7]
[342745742,1732098655049,-500.0,0.00022739,7]
[342745743,1732098655059,-500.0,0.00022739,7]
[342745744,1732098655069,-500.0,0.00022739,7]
[342745745,1732098655079,-500.0,0.00022739,7]
[342745746,1732098655088,-500.0,0.00022739,7]
[342745747,1732098655098,-500.0,0.00022739,7]
[342745748,1732098655107,-156.18469501,0.00022739,7]
[342745749,1732098655116,-500.0,0.00022739,7]
[342745750,1732098655125,-500.0,0.00022739,7]
[342745751,1732098655135,-500.0,0.00022739,7]
[342745752,1732098655144,-518.86,0.00022739,7]
[342745753,1732098655153,-500.0,0.00022739,7]
[342745754,1732098655163,-500.0,0.00022739,7]
[342745755,1732098655172,-512.06,0.00022739,7]
[342745756,1732098655181,-300.35045941,0.00022739,7]
[342745757,1732098655190,-500.0,0.00022739,7]
[342745758,1732098655199,-958.07,0.00022739,7]
[342745759,1732098655209,-500.0,0.00022739,7]
[342745760,1732098655219,-500.0,0.00022739,7]
[342745761,1732098655229,-500.0,0.00022739,7]
[342745762,1732098655239,-500.0,0.00022739,7]
[342745763,1732098655249,-500.0,0.00022739,7]
[342745764,1732098655261,-500.0,0.00022739,7]
[342745765,1732098655271,-500.0,0.00022739,7]
[342745766,1732098655280,-555.91002922,0.00022739,7]
[342745767,1732098655290,-518.73,0.00022739,7]
[342745768,1732098655301,-1123.69,0.00022739,7]
[342745769,1732098655312,-500.0,0.00022739,7]
[342745770,1732098655322,-500.0,0.00022739,7]
[342745771,1732098655332,-645.57,0.00022739,7]
[342745772,1732098655341,-500.0,0.00022739,7]
[342745773,1732098655351,-500.0,0.00022739,7]
[342745774,1732098655360,-945.04,0.00022739,7]
[342745775,1732098655369,-500.0,0.00022739,7]
[342745776,1732098655379,-500.0,0.00022739,7]
[342745777,1732098655388,-500.0,0.00022739,7]
[342745778,1732098655397,-561.21,0.00022739,7]
[342745779,1732098655406,-500.0,0.00022739,7]
[342745780,1732098655417,-519.46212994,0.00022739,7]
[342745781,1732098655426,-829.07,0.00022739,7]
[342745782,1732098655436,-500.0,0.00022739,7]
[342745783,1732098655446,-599.35,0.00022739,7]
[342745784,1732098655455,-500.0,0.00022739,7]
[342745785,1732098655465,-500.0,0.00022739,7]
[342745786,1732098655474,-500.0,0.00022739,7]
[342745787,1732098655485,-420.78903891,0.00022739,7]
[342745788,1732098655494,-500.0,0.00022739,7]
[342745789,1732098655504,-500.0,0.00022739,7]
[342745790,1732098655515,-500.0,0.00022739,7]
[342745791,1732098655524,-500.0,0.00022739,7]
[342745792,1732098655534,-500.0,0.00022739,7]
[342745793,1732098655543,-500.0,0.00022739,7]
[342745794,1732098655552,-838.19,0.00022739,7]
[342745795,1732098655562,-500.0,0.00022739,7]
[342745796,1732098655571,-500.0,0.00022739,7]
[342745797,1732098655580,-500.0,0.00022739,7]
[342745798,1732098655590,-1261.05,0.00022739,7]
[342745799,1732098655683,-500.0,0.00022739,7]
[342745800,1732098655702,-572.89,0.00022739,7]
[342745801,1732098655711,-500.0,0.00022739,7]
[342745802,1732098655721,-500.0,0.00022739,7]
[342745803,1732098655731,-500.0,0.00022739,7]
[342745804,1732098655740,-500.0,0.00022739,7]
[342745805,1732098655750,-500.0,0.00022739,7]
[342745806,1732098655760,-500.0,0.00022739,7]
[342745807,1732098655770,-500.0,0.00022739,7]
[342745808,1732098655780,-500.0,0.00022739,7]
[342745809,1732098655790,-500.0,0.00022739,7]
[342745810,1732098655804,-500.0,0.00022739,7]